bitfinex/quotes_BTCUSD_20250101
["timestamp","ask_amount","ask_price","bid_price","bid_amount"]
[1735744305090,1.777105,94207.0,94206.0,0.07277627]
[1735744305519,1.85553594,94207.0,94206.0,0.07277627]
[1735744306287,2.35553594,94207.0,94206.0,0.07277627]
[1735744307162,2.277105,94207.0,94206.0,0.07277627]
[1735744307389,2.264414,94207.0,94206.0,0.07277627]
[1735744307566,1.957431,94207.0,94206.0,0.07277627]
[1735744307726,1.946299,94207.0,94206.0,0.07277627]
[1735744308607,1.766995,94207.0,94206.0,0.07277627]
[1735744310480,1.90996017,94207.0,94206.0,0.07277627]
[1735744310701,1.79555917,94207.0,94206.0,0.07277627]
[1735744310904,0.75909917,94207.0,94206.0,0.13479096]
[1735744311106,0.75909917,94207.0,94206.0,0.12247627]
[1735744311760,0.766134,94207.0,94206.0,0.12247627]
[1735744311968,0.766134,94207.0,94206.0,0.12256167]
[1735744312183,0.7663048,94207.0,94206.0,0.12256167]
[1735744312575,0.2663048,94207.0,94206.0,0.12256167]
[1735744317705,0.40926997,94207.0,94206.0,0.12256167]
[1735744319051,0.2663048,94207.0,94206.0,0.12256167]
[1735744326660,0.37029112,94207.0,94206.0,8.54e-05]
[1735744326867,0.50473807,94207.0,94206.0,4e-07]
[1735744327225,0.39260407,94207.0,94206.0,4e-07]
[1735744327611,0.39160407,94207.0,94206.0,4e-07]
[1735744327810,0.38860407,94207.0,94206.0,4e-07]
[1735744327950,0.39060407,94207.0,94206.0,4e-07]
[1735744328147,0.39960407,94207.0,94206.0,4e-07]
[1735744328469,0.46600407,94207.0,94206.0,4e-07]
[1735744328667,0.46600407,94207.0,94201.0,7e-07]
[1735744328668,0.15,94202.0,94201.0,7e-07]
[1735744328891,0.25398632,94202.0,94201.0,7e-07]
[1735744329115,0.36233,94193.0,94182.0,0.08]
[1735744329321,2.64443545,94193.0,94191.0,6e-07]
[1735744329524,1.82677432,94192.0,94191.0,6e-07]
[1735744329728,0.34917183,94192.0,94191.0,6e-07]
[1735744330140,0.37963246,94192.0,94191.0,6e-07]
[1735744330345,0.50263246,94192.0,94191.0,6e-07]
[1735744330860,0.51163246,94192.0,94191.0,6e-07]
[1735744331087,0.50263246,94192.0,94191.0,6e-07]
[1735744331315,0.50563246,94192.0,94191.0,6e-07]
[1735744331508,0.51463246,94192.0,94191.0,6e-07]
[1735744331714,0.40154411,94192.0,94191.0,6e-07]
[1735744331917,0.37108348,94192.0,94191.0,6e-07]
[1735744332336,0.42454411,94192.0,94191.0,6e-07]
[1735744334567,0.41944695,94192.0,94191.0,6e-07]
[1735744335942,0.38898632,94192.0,94191.0,6e-07]
[1735744336179,0.49297264,94192.0,94191.0,6e-07]
[1735744336376,0.49297264,94192.0,94191.0,8.6e-05]
[1735744336604,0.49297264,94192.0,94191.0,1e-06]
[1735744336783,1.87100164,94192.0,94191.0,1e-06]
[1735744338015,1.97143505,94192.0,94191.0,1e-06]
[1735744338313,1.99483853,94192.0,94191.0,1e-06]
[1735744338465,1.98005053,94192.0,94191.0,1e-06]
[1735744338874,1.96805053,94192.0,94191.0,1e-06]
[1735744339074,1.86406421,94192.0,94191.0,1e-06]
[1735744339342,1.74120121,94192.0,94191.0,1e-06]
[1735744339770,1.73108395,94192.0,94191.0,1e-06]
[1735744340171,1.73708395,94192.0,94191.0,1e-06]
[1735744340372,1.74608395,94192.0,94191.0,1e-06]
[1735744340533,1.83507027,94192.0,94191.0,1e-06]
[1735744340932,1.84407027,94192.0,94191.0,1e-06]
[1735744341992,1.84907027,94192.0,94191.0,1e-06]
[1735744342171,1.8601596,94192.0,94191.0,1e-06]
[1735744343681,2.3601596,94192.0,94191.0,1e-06]
[1735744344282,0.15,94184.0,94180.0,4e-07]
[1735744344487,0.362357,94181.0,94180.0,4e-07]
[1735744344686,0.46634332,94181.0,94180.0,4e-07]
[1735744345490,0.46634332,94181.0,94180.0,0.00049809]
[1735744346063,1.85913432,94181.0,94180.0,0.00049809]
[1735744346274,1.63040532,94181.0,94180.0,0.00049809]
[1735744347073,2.13040532,94181.0,94180.0,0.00049809]
[1735744347224,2.13940532,94181.0,94180.0,0.00049809]
[1735744347425,2.22949367,94181.0,94180.0,0.00049809]
[1735744349301,2.63543256,94181.0,94180.0,0.00049809]
[1735744350012,2.63543256,94181.0,94180.0,9e-08]
[1735744350242,1.47437056,94181.0,94180.0,9e-08]
[1735744351089,1.47137056,94181.0,94180.0,9e-08]
[1735744351291,1.47537056,94181.0,94180.0,9e-08]
[1735744351523,1.37628221,94181.0,94180.0,9e-08]
[1735744352084,1.37228221,94181.0,94180.0,9e-08]
[1735744352417,1.37628221,94181.0,94180.0,9e-08]
[1735744352937,1.38128221,94181.0,94180.0,9e-08]
[1735744353142,1.37228221,94181.0,94180.0,9e-08]
[1735744353301,1.42446383,94181.0,94180.0,9e-08]
[1735744353502,1.43346383,94181.0,94180.0,9e-08]
[1735744353916,0.91493889,94181.0,94180.0,0.12970009]
[1735744354379,0.91493889,94181.0,94180.0,0.22970009]
[1735744354380,0.91893889,94181.0,94180.0,0.22970009]
[1735744354749,1.05593889,94181.0,94180.0,0.12970009]
[1735744355127,1.05593889,94181.0,94180.0,0.22970009]
[1735744355128,0.79691337,94181.0,94180.0,0.22970009]
[1735744355359,0.79691337,94181.0,94180.0,0.12970009]
[1735744355598,0.79291337,94181.0,94180.0,0.12970009]
[1735744356015,0.79391337,94181.0,94180.0,0.12970009]
[1735744356218,0.52615269,94181.0,94180.0,0.12970009]
[1735744356450,0.38323932,94181.0,94180.0,0.12970009]
[1735744356655,0.39223932,94181.0,94180.0,0.12970009]
[1735744357062,0.38323932,94181.0,94180.0,0.12970009]
[1735744357280,0.278253,94181.0,94180.0,0.12970009]
[1735744357486,0.281253,94181.0,94180.0,0.12970009]
[1735744357854,0.278253,94181.0,94180.0,0.12970009]
[1735744357971,0.280253,94181.0,94180.0,0.12970009]
[1735744358170,0.278253,94181.0,94180.0,0.12970009]
[1735744358393,0.38323932,94181.0,94180.0,0.12970009]
[1735744358615,0.38623932,94181.0,94180.0,0.12970009]
[1735744359063,0.38523932,94181.0,94180.0,0.12970009]
[1735744359256,0.38523932,94181.0,94180.0,9e-08]
[1735744359452,0.153,94181.0,94180.0,9e-08]
[1735744359856,0.15,94181.0,94180.0,9e-08]
[1735744360210,0.152,94181.0,94180.0,9e-08]
[1735744360577,0.152,94181.0,94180.0,0.07588539]
[1735744360783,0.156,94181.0,94180.0,0.07588539]
[1735744360985,0.1561706,94181.0,94180.0,0.07588539]
[1735744361387,0.4466336,94181.0,94180.0,0.07588539]
[1735744361764,0.4466336,94181.0,94180.0,0.12258539]
[1735744361974,0.3921546,94181.0,94180.0,0.12258539]
[1735744362536,0.19691003,94181.0,94180.0,0.22258539]
[1735744362914,0.36211803,94181.0,94180.0,0.22258539]
[1735744363127,0.50151703,94181.0,94180.0,0.12258539]
[1735744363418,0.48335503,94181.0,94180.0,0.12258539]
[1735744363670,0.2866156,94181.0,94180.0,0.12258539]
[1735744364074,0.2620156,94181.0,94180.0,0.12258539]
[1735744365064,0.45275503,94181.0,94180.0,0.12258539]
[1735744365579,0.50882336,94181.0,94180.0,0.12258539]
[1735744366175,0.31808393,94181.0,94180.0,0.12258539]
[1735744366732,0.2620156,94181.0,94180.0,0.12258539]
[1735744366953,0.2640156,94181.0,94180.0,0.12258539]
[1735744367382,0.500376,94181.0,94180.0,0.12258539]
[1735744367581,0.501376,94181.0,94180.0,0.12258539]
[1735744368117,0.389531,94181.0,94180.0,0.12258539]
[1735744368365,0.1511706,94181.0,94180.0,0.12258539]
[1735744369118,0.0011706,94181.0,94180.0,0.22258539]
[1735744369320,0.0001706,94181.0,94180.0,0.32657171]
[1735744369755,0.0011706,94181.0,94180.0,0.32657171]
[1735744371561,0.19223352,94181.0,94180.0,0.32657171]
[1735744372350,0.19223352,94181.0,94180.0,0.22258539]
[1735744372733,0.0011706,94181.0,94180.0,0.22258539]
[1735744373699,0.02517053,94181.0,94180.0,0.12258539]
[1735744373897,0.02517053,94181.0,94180.0,0.22258539]
[1735744374330,0.15091753,94181.0,94180.0,0.22258539]
[1735744374513,0.16079553,94181.0,94180.0,0.22258539]
[1735744374715,0.1367956,94181.0,94180.0,0.22258539]
[1735744374916,0.1367956,94181.0,94180.0,0.12258539]
[1735744375160,0.1367956,94181.0,94180.0,0.22258539]
[1735744375538,0.1357956,94181.0,94180.0,0.22258539]
[1735744375981,0.1357956,94181.0,94180.0,0.12258539]
[1735744376503,0.1357956,94181.0,94180.0,0.22258539]
[1735744376881,0.2857956,94181.0,94180.0,0.22258539]
[1735744377094,0.2857956,94181.0,94180.0,0.12258539]
[1735744378316,0.2857956,94181.0,94180.0,0.22258539]
[1735744378472,0.2857956,94181.0,94180.0,0.12258539]
[1735744378674,0.2857956,94181.0,94180.0,8.539e-05]
[1735744378898,0.36419283,94181.0,94180.0,8.539e-05]
[1735744379641,0.2857956,94181.0,94180.0,8.539e-05]
[1735744380006,0.2877956,94181.0,94180.0,8.539e-05]
[1735744380185,0.2857956,94181.0,94180.0,8.539e-05]
[1735744380570,0.38978192,94181.0,94180.0,8.539e-05]
[1735744381137,0.39078192,94181.0,94180.0,8.539e-05]
[1735744381337,0.49476824,94181.0,94180.0,8.539e-05]
[1735744381589,0.2887956,94181.0,94180.0,8.539e-05]
[1735744381767,0.2877956,94181.0,94180.0,8.539e-05]
[1735744381972,0.2857956,94181.0,94180.0,8.539e-05]
[1735744382145,0.2887956,94181.0,94180.0,8.539e-05]
[1735744382573,0.2857956,94181.0,94180.0,8.539e-05]
[1735744382903,0.2887956,94181.0,94180.0,8.539e-05]
[1735744383199,0.2897956,94181.0,94180.0,8.539e-05]
[1735744383708,0.2887956,94181.0,94180.0,8.539e-05]
[1735744384110,0.2897956,94181.0,94180.0,8.539e-05]
[1735744385096,0.2867956,94181.0,94180.0,8.539e-05]
[1735744385618,0.2887956,94181.0,94180.0,8.539e-05]
[1735744386116,0.2857956,94181.0,94180.0,8.539e-05]
[1735744386323,0.2867956,94181.0,94180.0,8.539e-05]
[1735744386661,0.2887956,94181.0,94180.0,8.539e-05]
[1735744387056,0.2877956,94181.0,94180.0,8.539e-05]
[1735744388605,0.36155625,94181.0,94180.0,8.539e-05]
[1735744389005,0.6946058,94181.0,94180.0,8.539e-05]
[1735744389621,0.79859212,94181.0,94180.0,8.539e-05]
[1735744389894,0.6946058,94181.0,94180.0,8.539e-05]
[1735744390528,1.01632923,94181.0,94180.0,8.539e-05]
[1735744390667,1.01432923,94181.0,94180.0,8.539e-05]
[1735744390867,1.01532923,94181.0,94180.0,8.539e-05]
[1735744391255,1.01832923,94181.0,94180.0,8.539e-05]
[1735744391588,0.6966058,94181.0,94180.0,8.539e-05]
[1735744391794,0.72083282,94181.0,94180.0,8.539e-05]
[1735744392215,0.71983282,94181.0,94180.0,8.539e-05]
[1735744392627,0.72083282,94181.0,94180.0,8.539e-05]
[1735744392951,0.31402262,94181.0,94180.0,8.539e-05]
[1735744393085,0.31102262,94181.0,94180.0,8.539e-05]
[1735744393499,0.31402262,94181.0,94180.0,8.539e-05]
[1735744394345,0.72083282,94181.0,94180.0,8.539e-05]
[1735744396307,0.71783282,94181.0,94180.0,8.539e-05]
[1735744396450,1.02070047,94181.0,94180.0,8.539e-05]
[1735744396652,1.03170047,94181.0,94180.0,8.539e-05]
[1735744396876,1.02370047,94181.0,94180.0,8.539e-05]
[1735744397107,1.02870047,94181.0,94180.0,8.539e-05]
[1735744397475,1.02570047,94181.0,94180.0,8.539e-05]
[1735744397997,1.02070047,94181.0,94180.0,8.539e-05]
[1735744398188,1.02570047,94181.0,94180.0,8.539e-05]
[1735744398606,1.00147345,94181.0,94180.0,8.539e-05]
[1735744399652,1.00347345,94181.0,94180.0,8.539e-05]
[1735744400058,0.99647345,94181.0,94180.0,8.539e-05]
[1735744400314,1.00347345,94181.0,94180.0,8.539e-05]
[1735744400816,0.99847345,94181.0,94180.0,8.539e-05]
[1735744401020,0.6976058,94181.0,94180.0,8.539e-05]
[1735744401220,0.6946058,94181.0,94180.0,8.539e-05]
[1735744401810,0.6996058,94181.0,94180.0,8.539e-05]
[1735744402562,0.2927956,94181.0,94180.0,8.539e-05]
[1735744402760,0.2907956,94181.0,94180.0,8.539e-05]
[1735744403125,0.2887956,94181.0,94180.0,8.539e-05]
[1735744403338,0.6956058,94181.0,94180.0,8.539e-05]
[1735744403505,0.80759212,94181.0,94180.0,8.539e-05]
[1735744403694,0.79659212,94181.0,94180.0,8.539e-05]
[1735744403937,0.80459212,94181.0,94180.0,8.539e-05]
[1735744404138,0.80759212,94181.0,94180.0,8.539e-05]
[1735744404491,0.80459212,94181.0,94180.0,8.539e-05]
[1735744404694,0.79659212,94181.0,94180.0,8.539e-05]
[1735744405139,0.80459212,94181.0,94180.0,8.539e-05]
[1735744405936,0.90857844,94181.0,94180.0,8.539e-05]
[1735744406261,0.91157844,94181.0,94180.0,8.539e-05]
[1735744406419,0.90057844,94181.0,94180.0,8.539e-05]
[1735744406825,0.91157844,94181.0,94180.0,8.539e-05]
[1735744407029,0.90357844,94181.0,94180.0,8.539e-05]
[1735744407359,0.90857844,94181.0,94180.0,8.539e-05]
[1735744407539,0.98887844,94181.0,94180.0,8.539e-05]
[1735744407741,0.98487844,94181.0,94180.0,8.539e-05]
[1735744407942,0.99387844,94181.0,94180.0,8.539e-05]
[1735744408148,0.99387844,94181.0,94180.0,3.9e-07]
[1735744408409,0.84925344,94181.0,94180.0,3.9e-07]
[1735744409006,0.84525344,94181.0,94180.0,3.9e-07]
[1735744409429,0.84925344,94181.0,94180.0,3.9e-07]
[1735744409840,2.460598,94180.0,94176.0,6.9e-07]
[1735744410043,0.362363,94178.0,94176.0,0.00012688]
[1735744410252,2.02511832,94177.0,94176.0,0.00012688]
[1735744410463,2.01482632,94177.0,94176.0,0.00012688]
[1735744410677,2.23452728,94177.0,94176.0,0.00012688]
[1735744411096,2.33419022,94177.0,94176.0,8.8e-07]
[1735744411298,0.362399,94162.0,94161.0,8.8e-07]
[1735744411527,0.362449,94140.0,94139.0,0.0805]
[1735744411731,1.224479,94140.0,94139.0,0.0805]
[1735744411983,1.30908564,94140.0,94139.0,0.0805]
[1735744412196,1.273407,94140.0,94139.0,0.0805]
[1735744412610,1.123971,94140.0,94139.0,0.0805]
[1735744413026,0.153,94140.0,94139.0,0.1805]
[1735744413434,0.15,94140.0,94139.0,0.1805]
[1735744413808,0.152,94140.0,94139.0,0.1805]
[1735744414017,0.151,94140.0,94139.0,0.1805]
[1735744414588,0.151,94140.0,94139.0,0.2296]
[1735744415235,0.153,94140.0,94139.0,0.2296]
[1735744416046,0.152,94140.0,94139.0,0.2296]
[1735744416590,0.72470511,94140.0,94139.0,0.2296]
[1735744416710,0.99792569,94140.0,94139.0,0.2296]
[1735744417779,0.80687968,94140.0,94139.0,0.2296]
[1735744418364,0.73815368,94140.0,94139.0,0.1296]
[1735744418789,0.73815368,94140.0,94139.0,0.1296854]
[1735744420390,0.74337473,94140.0,94139.0,0.1296854]
[1735744421238,0.78473625,94140.0,94139.0,0.1296854]
[1735744421451,0.78673625,94140.0,94139.0,8.54e-05]
[1735744421658,1.07350385,94140.0,94139.0,8.54e-05]
[1735744422284,1.07450385,94140.0,94139.0,8.54e-05]
[1735744422498,1.19474987,94140.0,94139.0,8.54e-05]
[1735744422700,1.19174987,94140.0,94139.0,8.54e-05]
[1735744423108,1.34206138,94140.0,94139.0,8.54e-05]
[1735744423311,1.34306138,94140.0,94139.0,8.54e-05]
[1735744423514,1.34006138,94140.0,94139.0,8.54e-05]
[1735744423632,1.34306138,94140.0,94139.0,8.54e-05]
[1735744424527,1.35206138,94140.0,94139.0,8.54e-05]
[1735744424677,1.35206138,94140.0,94139.0,1.026e-05]
[1735744425089,1.34806138,94140.0,94139.0,1.026e-05]
[1735744425433,1.35206138,94140.0,94139.0,1.026e-05]
[1735744425819,1.33906138,94140.0,94139.0,1.026e-05]
[1735744426023,1.34806138,94140.0,94139.0,1.026e-05]
[1735744426231,1.34306138,94140.0,94139.0,1.026e-05]
[1735744426673,1.31069986,94140.0,94139.0,1.026e-05]
[1735744427211,0.36249,94122.0,94121.0,0.00023458]
[1735744427423,0.933908,94122.0,94121.0,0.00023458]
[1735744427643,0.283199,94122.0,94121.0,0.00023458]
[1735744427864,0.3719,94122.0,94121.0,0.00023458]
[1735744428276,0.3719,94122.0,94121.0,0.00019458]
[1735744429084,0.37308144,94122.0,94121.0,0.00019458]
[1735744429262,0.65104768,94122.0,94121.0,0.00019458]
[1735744429470,0.52151468,94122.0,94121.0,0.00019458]
[1735744429667,0.44955868,94122.0,94121.0,0.00019458]
[1735744429937,0.30622768,94122.0,94121.0,0.00019458]
[1735744430121,0.30422768,94122.0,94121.0,0.00019458]
[1735744430320,0.43936968,94122.0,94121.0,0.00019458]
[1735744430521,0.44536968,94122.0,94121.0,0.00019458]
[1735744430751,0.212479,94127.0,94121.0,0.00019458]
[1735744430752,0.1429694,94123.0,94121.0,0.10019458]
[1735744430878,0.1429694,94123.0,94122.0,0.1791]
[1735744431513,0.1429694,94123.0,94122.0,0.1781]
[1735744431889,0.1429694,94124.0,94123.0,0.099]
[1735744432095,0.3357404,94124.0,94123.0,0.097]
[1735744432292,0.3357404,94124.0,94122.0,0.0791]
[1735744432293,0.213487,94123.0,94122.0,0.0791]
[1735744432690,0.003,94123.0,94122.0,0.0791]
[1735744433085,0.001,94124.0,94122.0,0.0791]
[1735744433331,0.004,94124.0,94122.0,0.0791]
[1735744433541,0.212487,94123.0,94122.0,0.0791]
[1735744433956,0.343942,94123.0,94122.0,0.0791]
[1735744434208,0.215487,94123.0,94122.0,0.0791]
[1735744434416,0.003,94123.0,94122.0,0.1761]
[1735744435072,0.004,94123.0,94122.0,0.1761]
[1735744435282,0.001,94123.0,94122.0,0.1761]
[1735744435488,0.001,94123.0,94122.0,0.0791]
[1735744435732,0.139131,94123.0,94122.0,0.0791]
[1735744435934,0.001,94123.0,94122.0,0.0791]
[1735744436174,0.003,94123.0,94122.0,0.0791]
[1735744437580,0.003,94123.0,94122.0,0.1761]
[1735744438807,0.1459694,94123.0,94122.0,0.1761]
[1735744440115,0.33568448,94123.0,94122.0,0.1761]
[1735744440722,0.33568448,94123.0,94121.0,0.00019458]
[1735744440935,0.345483,94122.0,94121.0,0.00019458]
[1735744442643,0.348483,94122.0,94121.0,0.00019458]
[1735744443414,0.68116748,94122.0,94121.0,0.00019458]
[1735744443615,0.46867748,94122.0,94121.0,0.00019458]
[1735744443822,0.46867748,94122.0,94121.0,2.83e-06]
[1735744444397,0.46767748,94122.0,94121.0,2.83e-06]
[1735744444592,0.46967748,94122.0,94121.0,2.83e-06]
[1735744444899,0.68216748,94122.0,94121.0,2.83e-06]
[1735744445103,0.67816748,94122.0,94121.0,2.83e-06]
[1735744445513,0.68516748,94122.0,94121.0,8.823e-05]
[1735744445755,0.67916748,94122.0,94121.0,8.823e-05]
[1735744445960,0.67816748,94122.0,94121.0,8.823e-05]
[1735744446129,0.68116748,94122.0,94121.0,8.823e-05]
[1735744447514,0.68216748,94122.0,94121.0,8.823e-05]
[1735744448112,0.68116748,94122.0,94121.0,8.823e-05]
[1735744448308,0.68316748,94122.0,94121.0,8.823e-05]
[1735744448531,0.15,94088.0,94086.0,0.076]
[1735744448731,0.15,94086.0,94085.0,4e-07]
[1735744448965,0.15,94086.0,94085.0,0.00049532]
[1735744449314,0.25398632,94086.0,94085.0,0.00049532]
[1735744449496,0.36045258,94086.0,94085.0,0.00049532]
[1735744449703,2.25965395,94086.0,94085.0,0.00049532]
[1735744449921,2.22647995,94086.0,94085.0,0.00049532]
[1735744450126,2.13456704,94086.0,94085.0,0.00049532]
[1735744450324,2.00242084,94086.0,94085.0,0.00049532]
[1735744450660,1.77604484,94086.0,94085.0,0.00049532]
[1735744450859,1.77704484,94086.0,94085.0,0.00049532]
[1735744451071,1.74225088,94086.0,94085.0,0.00049532]
[1735744451584,1.74125088,94086.0,94085.0,0.00049532]
[1735744451739,1.339401,94086.0,94085.0,0.00049532]
[1735744451944,0.002,94086.0,94085.0,0.07649532]
[1735744452143,0.212565,94089.0,94085.0,0.07649532]
[1735744452349,0.362569,94087.0,94085.0,0.07649532]
[1735744452511,0.009,94086.0,94085.0,0.07649532]
[1735744452717,0.002,94086.0,94085.0,0.07649532]
[1735744453138,0.007,94086.0,94085.0,0.07649532]
[1735744453625,0.50389987,94086.0,94085.0,0.07649532]
[1735744453829,0.50589987,94086.0,94085.0,0.07649532]
[1735744455176,0.50689987,94086.0,94085.0,0.07649532]
[1735744456775,0.50689987,94086.0,94085.0,0.12609532]
[1735744456988,0.35689987,94086.0,94085.0,0.12609532]
[1735744457381,0.50689987,94086.0,94085.0,0.12609532]
[1735744458402,0.74522596,94086.0,94085.0,0.12609532]
[1735744458896,0.74422596,94086.0,94076.0,0.076]
[1735744459098,0.7447208,94086.0,94077.0,0.10398632]
[1735744459301,0.7407208,94086.0,94077.0,0.10398632]
[1735744459502,0.7417208,94086.0,94077.0,0.10398632]
[1735744459703,0.50239471,94086.0,94077.0,0.10398632]
[1735744460105,0.50339471,94086.0,94077.0,0.10398632]
[1735744460529,0.92753871,94086.0,94076.0,0.076]
[1735744460735,0.92853871,94086.0,94076.0,0.076]
[1735744461111,0.23841793,94079.0,94076.0,0.076]
[1735744462028,0.19072015,94079.0,94076.0,0.076]
[1735744462935,0.212589,94078.0,94076.0,0.076]
[1735744463283,0.19072015,94079.0,94076.0,0.076]
[1735744463284,0.09636936,94079.0,94076.0,0.076]
[1735744463423,0.09636936,94079.0,94077.0,0.01258]
[1735744463623,0.09836936,94079.0,94077.0,0.01258]
[1735744463824,0.09736936,94079.0,94077.0,0.01258]
[1735744464025,0.09736936,94079.0,94076.0,0.076]
[1735744464232,0.001,94078.0,94076.0,0.076]
[1735744465663,0.212585,94080.0,94076.0,0.076]
[1735744465877,0.001,94079.0,94076.0,0.076]
[1735744466070,0.212585,94080.0,94073.0,0.0496]
[1735744466071,0.14305405,94080.0,94074.0,0.0802]
[1735744466475,0.001,94078.0,94075.0,0.10398632]
[1735744466683,0.14305405,94080.0,94075.0,0.10398632]
[1735744467125,0.15049484,94086.0,94075.0,0.10398632]
[1735744467126,0.14305405,94078.0,94075.0,0.10398632]
[1735744467655,0.14405405,94078.0,94075.0,0.10398632]
[1735744468594,0.14305405,94077.0,94075.0,0.10407172]
[1735744469845,0.001,94078.0,94075.0,0.10407172]
[1735744470086,0.19172015,94078.0,94075.0,0.10407172]
[1735744470444,0.19072015,94078.0,94075.0,0.10407172]
[1735744470857,0.19172015,94078.0,94075.0,0.10407172]
[1735744471232,0.14314718,94076.0,94075.0,0.10407172]
[1735744471979,0.14314718,94076.0,94075.0,0.18427172]
[1735744472549,0.3522779,94077.0,94075.0,0.18427172]
[1735744473067,0.20592393,94077.0,94076.0,0.04466807]
[1735744473273,0.20592393,94077.0,94076.0,0.14865439]
[1735744473998,0.14315408,94077.0,94076.0,0.14865439]
[1735744474190,0.14315408,94077.0,94076.0,0.10398632]
[1735744475376,0.19072015,94079.0,94076.0,0.10398632]
[1735744475596,0.19072015,94079.0,94077.0,0.10398632]
[1735744476574,0.19072015,94079.0,94077.0,0.10298632]
[1735744476731,0.19672015,94079.0,94077.0,0.10298632]
[1735744476938,0.19072015,94080.0,94077.0,0.10298632]
[1735744477374,0.002,94079.0,94077.0,0.10298632]
[1735744477792,0.001,94079.0,94077.0,0.10298632]
[1735744478975,0.19072015,94081.0,94077.0,0.10298632]
[1735744479129,0.19072015,94081.0,94078.0,0.02330717]
[1735744479328,0.002,94080.0,94079.0,0.18308632]
[1735744479534,0.23858141,94083.0,94079.0,0.15368632]
[1735744479940,0.23858141,94083.0,94081.0,0.0781]
[1735744480134,0.23858141,94083.0,94082.0,0.27668632]
[1735744480264,0.23858141,94083.0,94082.0,0.58926632]
[1735744480471,0.23858141,94083.0,94082.0,0.58726632]
[1735744480733,0.23858141,94083.0,94082.0,0.67285294]
[1735744481229,0.14322964,94084.0,94083.0,0.462277]
[1735744481423,0.14322964,94084.0,94083.0,0.56626332]
[1735744482584,0.02349407,94084.0,94083.0,0.71626332]
[1735744482781,0.06287285,94087.0,94086.0,0.747571]
[1735744482987,0.0009899,94102.0,94095.0,0.412551]
[1735744483191,0.0009899,94102.0,94095.0,0.57363732]
[1735744483391,0.09552236,94112.0,94095.0,0.57363732]
[1735744484296,0.0009887,94114.0,94095.0,0.57363732]
[1735744484640,0.09552236,94130.0,94095.0,0.57363732]
[1735744484843,0.09651586,94130.0,94095.0,0.57363732]
[1735744485480,0.0011708,94096.0,94095.0,0.57763732]
[1735744485868,0.0021708,94096.0,94095.0,0.57763732]
[1735744489656,0.0021708,94096.0,94095.0,0.72763732]
[1735744489878,0.0021708,94096.0,94095.0,0.74828521]
[1735744490525,0.0021708,94096.0,94095.0,0.75913215]
[1735744493723,0.0021708,94096.0,94095.0,0.87143215]
[1735744494085,8e-07,94096.0,94095.0,0.91783215]
[1735744494287,8e-07,94096.0,94095.0,1.98325266]
[1735744494966,8e-07,94096.0,94095.0,2.52995266]
[1735744495199,0.0009881,94133.0,94122.0,0.41249]
[1735744495401,0.0009881,94133.0,94122.0,0.62322472]
[1735744496390,0.0009881,94133.0,94122.0,0.62337387]
[1735744496588,0.0011708,94123.0,94122.0,0.62337387]
[1735744497034,0.0021708,94123.0,94122.0,0.63237387]
[1735744497239,0.00202809,94123.0,94122.0,0.63237387]
[1735744499437,0.02189869,94123.0,94122.0,0.63237387]
[1735744500130,0.0536935,94123.0,94122.0,0.63237387]
[1735744500758,0.00202809,94123.0,94122.0,0.63237387]
[1735744502748,2.809e-05,94123.0,94122.0,0.62337387]
[1735744502948,0.00102809,94123.0,94122.0,0.62937387]
[1735744503151,0.00202809,94123.0,94122.0,0.63837387]
[1735744503692,0.08222809,94123.0,94122.0,0.11913547]
[1735744504245,0.08122809,94123.0,94122.0,0.11313547]
[1735744504655,0.08122809,94123.0,94122.0,0.11513547]
[1735744504858,0.08022809,94123.0,94122.0,0.10613547]
[1735744505337,0.08022809,94123.0,94122.0,0.10813547]
[1735744505638,0.08022809,94123.0,94122.0,0.10613547]
[1735744505778,2.809e-05,94123.0,94122.0,0.15219922]
[1735744505985,2.809e-05,94123.0,94122.0,0.17519922]
[1735744506368,2.809e-05,94123.0,94122.0,0.17319922]
[1735744506774,2.809e-05,94123.0,94122.0,0.27519922]
[1735744506975,2.809e-05,94123.0,94122.0,0.27528452]
[1735744507417,2.809e-05,94123.0,94122.0,0.27328452]
[1735744507619,2.809e-05,94123.0,94122.0,0.27428452]
[1735744508816,2.809e-05,94123.0,94122.0,0.37428452]
[1735744510297,2.809e-05,94123.0,94122.0,0.37328452]
[1735744510459,2.809e-05,94123.0,94122.0,0.37728452]
[1735744511173,2.809e-05,94123.0,94122.0,0.37328452]
[1735744511349,0.212395,94164.0,94141.0,0.212447]
[1735744511555,0.212399,94162.0,94142.0,0.12523102]
[1735744511755,0.21481632,94175.0,94142.0,0.12523102]
[1735744511960,0.212381,94171.0,94143.0,0.023]
[1735744512183,0.30791136,94167.0,94146.0,0.212436]
[1735744512380,0.30791136,94167.0,94148.0,0.212431]
[1735744512589,0.212389,94167.0,94149.0,0.10398632]
[1735744512831,0.005,94162.0,94150.0,0.023]
[1735744513146,0.09552236,94169.0,94151.0,0.31641032]
[1735744513358,0.09651186,94169.0,94151.0,0.31641032]
[1735744513588,0.004,94162.0,94152.0,0.02064789]
[1735744513788,0.004,94162.0,94153.0,0.10398632]
[1735744514190,0.09651186,94169.0,94153.0,0.10398632]
[1735744514322,0.0039895,94169.0,94153.0,0.10413547]
[1735744514521,0.15,94167.0,94153.0,0.10413547]
[1735744515070,0.15,94167.0,94154.0,0.00103043]
[1735744515305,0.001,94162.0,94155.0,0.10398632]
[1735744516453,0.15,94167.0,94155.0,0.10398632]
[1735744516677,0.153,94167.0,94155.0,0.10398632]
[1735744517061,0.0816,94165.0,94155.0,0.10398632]
[1735744517448,0.1276,94154.0,94153.0,0.00014915]
[1735744517653,0.602816,94154.0,94153.0,0.00014915]
[1735744517898,0.54310857,94154.0,94153.0,0.00014915]
[1735744518713,0.54310857,94154.0,94122.0,8.53e-05]
[1735744518714,0.21140009,94142.0,94122.0,8.53e-05]
[1735744518920,0.0816,94141.0,94123.0,0.10398632]
[1735744519337,0.212449,94140.0,94123.0,0.10398632]
[1735744519543,0.0816,94141.0,94123.0,0.10398632]
[1735744520830,0.0816,94141.0,94126.0,0.123]
[1735744521053,0.0816,94141.0,94128.0,0.023]
[1735744521336,0.0816,94141.0,94129.0,0.10398632]
[1735744523072,0.0816,94141.0,94129.0,0.10498632]
[1735744526437,0.15,94149.0,94129.0,0.10498632]
[1735744526773,0.09552236,94145.0,94129.0,0.10498632]
[1735744526968,0.09552236,94145.0,94131.0,0.023]
[1735744527315,0.09552236,94145.0,94133.0,0.212465]
[1735744527493,0.09552236,94145.0,94131.0,0.023]
[1735744527494,0.09552236,94145.0,94134.0,0.10398632]
[1735744527856,0.09552236,94145.0,94137.0,0.212456]
[1735744528071,0.09552236,94145.0,94136.0,0.023]
[1735744528072,0.001,94145.0,94139.0,0.1]
[1735744528269,0.09552236,94152.0,94140.0,0.13668495]
[1735744528444,0.001,94145.0,94140.0,0.10398632]
[1735744528681,0.002,94145.0,94140.0,0.10398632]
[1735744529655,0.0834878,94153.0,94140.0,0.10398632]